Cogmind - Beta 17 @@@ ROGUE MODE // 2026.06.30 @ 16:28:51 Player: N.W.L. Result: Self-destructed Performance ------------- Evolutions (4) 2000 Regions Visited (6) 1200 Robots Destroyed (62) 310 Value Destroyed (1708) 1708 Prototype IDs (19) 380 Alien Tech Used (0) 0 Bonus (3153) 3153 TOTAL SCORE: 8751 Bonus ------- High Alert Combat Kills 37 Follower Combat Kills 2055 Delivered SUBCON Basin 2000 Registered with UFD 300 Met Optimus in HQ 500 Friendly Fire -1739 Cogmind --------- Core Integrity 778/850 Matter 215/300 Energy 180/180 System Corruption 14% Temperature Cool (0) Movement Rolling (190) Ox12 Location -6/Extension Parts ------- > --- POWER (1) -------- Meta Core > --- PROPULSION (3) --- Overtuned Huge Scrapsphere > --- UTILITY (6+1) ---- Scrap Suit Makeshift Microdissipator Network Humpback Medium Reflective Plating Hacking Suite (+) > --- WEAPON (5) ------- Overtuned Barrage Gun Overtuned Coil Gun Overtuned Coil Gun Overtuned Coil Gun Overtuned Coil Gun > --- INVENTORY (35) --- Reinforced Deuterium Engine Fission Core Overtuned Treads Overtuned Treads Overtuned Titanium Leg Overtuned Huge Scrapsphere Scrap Suit Scrap Suit Scrap Suit Improved Cooling System Improved Cooling System Makeshift Microdissipator Network Makeshift Microdissipator Network Makeshift Microdissipator Network Makeshift Microdissipator Network Large Storage Unit Expert System ID Mask Improved Power Shielding Remote Shield A0-MCA's Component Scanner Tech Extrapolator Tech Extrapolator Scrapoid Pod Overtuned Beamcaster Overtuned Beamcaster Overtuned Beamcaster Advanced EMP Blaster Experimental Plasma Cutter DM-GVY's Chainsaw Peak State ------------ > --- POWER ------------ Meta Core > --- PROPULSION ------- Overtuned Titanium Leg Overtuned Huge Scrapsphere > --- UTILITY ---------- Scrap Suit Makeshift Microdissipator Network Humpback Hacking Suite Makeshift Hacking Suite > --- WEAPON ----------- Overtuned Pulse Rifle Overtuned Barrage Gun Overtuned Coil Gun Overtuned Coil Gun Overtuned Coil Gun Overtuned Coil Gun > --- INVENTORY -------- Reinforced Deuterium Engine Fission Core Overtuned Treads Overtuned Treads Overtuned Titanium Leg Overtuned Huge Scrapsphere Scrap Suit Scrap Suit Scrap Suit Improved Cooling System Improved Cooling System Makeshift Microdissipator Network Makeshift Microdissipator Network Makeshift Microdissipator Network Makeshift Microdissipator Network Large Storage Unit Expert System ID Mask Improved Power Shielding Medium Reflective Plating A0-MCA's Component Scanner Tech Extrapolator Tech Extrapolator Scrapoid Pod Overtuned Beamcaster Overtuned Beamcaster Overtuned Beamcaster Experimental Plasma Cutter DM-GVY's Chainsaw [Rating: 96] Favorites ----------- Power Subdweller Power Source Engine Subdweller Power Source Power Core Meta Core Propulsion Spiked Treads Treads Spiked Treads Leg Overtuned Titanium Leg Wheel Armored Wheel Hover Unit Backup Propulsion I Utility Humpback Device Scrapoid Pod Storage Humpback Hackware Hacking Suite Protection Backup Plating I Weapon Ripper Energy Gun Overtuned Pulse Rifle Energy Cannon Subdweller Beam Cannon Ballistic Gun Overtuned Coil Gun Ballistic Cannon Battle Cannon Launcher Subdweller Shrapnel Launcher Special Weapon CPS Tube Slashing Weapon Ripper Build | -11 -10 -10 -8 -8 -6 -6 ------- Run | Yrd Mat Sub Rec Scr Fac Ext Slots Evolved 8 | . . . . . 8 . Power . | . . . . . . . Propulsion 1 | . . . . . 1 . Utility 4 | . . . . . 4 . Weapon 3 | . . . . . 3 . Parts Attached 60 | . 3 13 2 31 11 . Power 4 | . . 2 . 2 . . Engine 2 | . . 2 . . . . Core 2 | . . . . 2 . . Reactor . | . . . . . . . Propulsion 17 | . . 5 1 11 . . Treads 4 | . . 2 . 2 . . Leg 6 | . . . . 6 . . Wheel 7 | . . 3 1 3 . . Hover . | . . . . . . . Flight . | . . . . . . . Utility 16 | . . 2 . 8 6 . Device 10 | . . 1 . 6 3 . Storage 2 | . . 1 . 1 . . Processor . | . . . . . . . Hackware 3 | . . . . 1 2 . Protection 1 | . . . . . 1 . Artifact . | . . . . . . . Weapon 23 | . 3 4 1 10 5 . Energy Gun 5 | . 2 . . 1 2 . Energy Cannon 2 | . . . 1 1 . . Ballistic Gun 7 | . . . . 5 2 . Ballistic Cannon 2 | . . 2 . . . . Launcher 4 | . 1 1 . 1 1 . Special Weapon 1 | . . . . 1 . . Impact Weapon . | . . . . . . . Slashing Weapon 2 | . . 1 . 1 . . Piercing Weapon . | . . . . . . . Special Melee Weapon . | . . . . . . . Unidentified Prototypes 2 | . . 1 . . 1 . Corrupted Parts 3 | . . . . . 3 . System Corruption 13 | . . . . . 13 . Parts Lost 8 | . . 3 1 1 3 . Power 1 | . . 1 . . . . Propulsion 3 | . . 1 1 . 1 . Utility 3 | . . 1 . 1 1 . Weapon 1 | . . . . . 1 . Highest Loss Streak 2 | . . 2 1 1 2 . To Critical Strikes . | . . . . . . . Average Backups 10 | . . 5 15 12 26 29 Power . | . . . . . . 2 Propulsion 1 | . . . 3 1 3 4 Utility 3 | . . 1 5 4 15 16 Weapon 3 | . . 2 6 4 4 5 Tool/Special . | . . . . . . . Unused Backups 43 | . . 5 . 16 . 22 Power 5 | . . 1 . 2 . 2 Propulsion 2 | . . . . 1 . 1 Utility 22 | . . . . 6 . 16 Weapon 9 | . . 4 . 4 . 1 Tool/Special 5 | . . . . 3 . 2 Average Slot Usage (%) 84 | . 83 95 84 78 68 75 Engine 7 | . 11 13 14 2 . . Core 4 | . . . . 9 5 6 Treads 9 | . . 22 . 2 . . Leg 3 | . . . . 8 4 . Wheel 11 | . . 4 27 17 5 6 Device 4 | . . 5 . 4 6 12 Storage 6 | . . 3 14 7 5 6 Hackware 2 | . . . . 3 12 6 Protection 6 | . 23 14 . . . 6 Energy Gun 3 | . 21 1 . 3 6 . Energy Cannon 1 | . . . 10 1 . . Ballistic Gun 4 | . . . . 7 17 31 Ballistic Cannon 6 | . . 13 13 . . . Slashing Weapon 9 | . . 13 3 8 . . Peak Build Rating 96 | . 7 37 37 58 96 90 Average Rating 28 | . 5 15 34 31 84 90 On Entrance 29 | . . 7 37 17 58 90 Avg Prop Armor Cover (%) 8 | . . . . 10 3 . Naked Turns 47 | . 47 . . . . . Heaviest Build 241 | . 7 211 216 219 241 241 Greatest Support 57 | 3 12 40 40 57 20 20 Greatest Overweight (x) 72 | . . 21 7 72 12 12 Average Overweight (x) 3 | . . . 6 3 11 12 Largest Inventory Capacity 35 | 5 5 35 35 35 35 35 Average Capacity 20 | 5 5 13 35 22 35 35 Most Carried 35 | . 1 35 35 31 35 35 Average Carried 14 | . . 7 34 14 30 34 Final Capacity 35 | 5 5 35 35 35 35 35 Final Carried 35 | . 1 35 20 31 34 35 Scrap Suit Usage (%) 5 | . . . . . 84 100 Parts Cannibalized 4 | . . . . . 3 1 Class Distribution -------------------- 36% | Derelict-Mutant 34% | Hauler-Mutant 6% | Hauler-Gunner 6% | Scavenger-Mutant 5% | Scavenger-Scrapper 5% | Scavenger-Gunner 4% | Mutant Dominant Class ---------------- Mutant | -10/Materials Derelict-Mutant | -10/Subcaves Hauler-Mutant | -8/Recycling Hauler-Mutant | -8/Scraptown Scavenger-Scrapper | -6/Factory Scavenger-Scrapper | -6/Extension Resources | -11 -10 -10 -8 -8 -6 -6 ----------- Run | Yrd Mat Sub Rec Scr Fac Ext Matter Collected 6094 | 32 175 530 72 4714 571 . Remotely . | . . . . . . . Salvage Created 2460 | . 130 395 208 757 970 . Parts 149 | . 8 35 3 38 65 . Haulers Intercepted 1 | . . . . . 1 . Recyclers Shooed . | . . . . . . . Parts Field Recycled . | . . . . . . . Retrieved Matter . | . . . . . . . Parts Self-Destructed 18 | . . 14 . 4 . . Prevented . | . . . . . . . Parts Restored . | . . . . . . . Kills | -11 -10 -10 -8 -8 -6 -6 ------- Run | Yrd Mat Sub Rec Scr Fac Ext Combat Hostiles Destroyed 39 | . 7 13 3 11 5 . Melee 6 | . . 6 . . . . Guns 13 | . 3 . . 6 4 . Cannons 3 | . . 1 2 . . . AOE 15 | . 4 6 . 5 . . Classes Destroyed 18 | . 2 4 2 3 7 . Worker 6 | . . . . . 6 . Builder 6 | . . . . . 6 . Hauler 1 | . . . . . 1 . Recycler 1 | . . . 1 . . . Mechanic 1 | . . . . . 1 . Turret 2 | . . 2 . . . . Swarmer 9 | . 3 6 . . . . Grunt 6 | . 4 . . . 2 . Sentry 3 | . . . 3 . . . Demolisher 1 | . . . . . 1 . Programmer 1 | . . . . . 1 . Behemoth 1 | . . . . . 1 . Artisan 4 | . . 4 . . . . Subdweller 8 | . . 8 . . . . Ranger 1 | . . . . 1 . . Scrapper 9 | . . . . 9 . . Scrapoid 4 | . . . . 1 3 . Zionite 1 | . . 1 . . . . Thug 1 | . . . . 1 . . Best Kill Streak 9 | . 5 6 1 4 9 . Combat Bots Only 5 | . 5 4 1 4 3 . Max Kills in Single Turn 7 | . 1 4 1 3 7 . Gunslinging . | . . . . . . . Exploded 4 | . 1 4 . 3 . . Melee 1 | . . 1 . . . . Uniques/NPCs Destroyed . | . . . . . . . Combat | -11 -10 -10 -8 -8 -6 -6 -------- Run | Yrd Mat Sub Rec Scr Fac Ext Hostile Shots Fired 137 | . 19 44 5 29 40 . Missed 53 | . 9 19 3 7 15 . Hits 84 | . 10 25 2 22 25 . Melee 3 | . . . . . 3 . Projectile 81 | . 10 25 2 22 22 . AOE 6 | . . 1 . 1 4 . Critical Strikes 5 | . . 1 . 2 2 . Damage Taken 1770 | . 135 421 44 586 584 . Core 278 | . 16 132 2 56 72 . Absorbed by Shields . | . . . . . . . Regen/Repaired (Parts) 27 | . . . . . 22 5 Core Remaining (%) 58 | 100 . . . 17 . . Volleys Fired 105 | . 17 11 7 38 32 . Largest 6 | . 2 2 2 3 6 . Hottest 238 | . 60 66 113 142 238 . Shots Fired 217 | . 24 16 13 42 121 1 Gun 166 | . 14 . . 32 119 1 Cannon 25 | . . 12 13 . . . Launcher 24 | . 10 4 . 8 2 . Special 2 | . . . . 2 . . Kinetic 164 | . . 16 6 35 106 1 Thermal 39 | . 14 . 7 5 13 . Explosive 10 | . 10 . . . . . Electromagnetic 2 | . . . . . 2 . Robot Hit Streak 9 | . 4 9 8 5 6 . Robot Miss Streak 13 | . 2 1 1 6 13 4 Penetration Max 1 | . . . . 1 1 . Secondary Targets 2 | . 1 . . . 1 . Max Gunslinging Chain 1 | . 1 . . . 1 . Shots Hit Robots 113 | . 12 28 8 24 41 . Core Hits 84 | . 10 20 4 15 35 . Critical Kills 1 | . . . 1 . . . Critical Parts Destroyed 4 | . . . . 1 3 . Critical Strikes 9 | . . . 1 4 4 . Burn 2 | . . . . 1 1 . Meltdown 1 | . . . 1 . . . Destroy 4 | . . . . 1 3 . Sever 2 | . . . . 2 . . Melee Attacks 67 | . . 61 . 6 . . Impact . | . . . . . . . Slashing 67 | . . 61 . 6 . . Piercing . | . . . . . . . Sneak Attacks 9 | . . 6 . 3 . . Combat Hostiles . | . . . . . . . Follow-up Attacks . | . . . . . . . Damage Inflicted 6106 | . 421 1542 220 1309 2614 . Guns 1969 | . 74 . . 349 1546 . Cannons 348 | . . 161 187 . . . Explosions 2649 | . 343 515 . 723 1068 . Melee 1103 | . . 866 . 237 . . Ramming 37 | . 4 . 33 . . . Kinetic 3058 | . . 676 50 1010 1322 . Thermal 800 | . 74 . 137 62 527 . Explosive 343 | . 343 . . . . . Electromagnetic 765 | . . . . . 765 . Impact . | . . . . . . . Slashing 1103 | . . 866 . 237 . . Piercing . | . . . . . . . Highest Corruption 14 | . 1 1 4 4 14 14 Average Corruption 1 | . 1 1 2 4 13 14 Corruption Purged . | . . . . . . . Corruption Blocked . | . . . . . . . Effects 66 | . 1 35 11 1 11 7 Message Errors 19 | . 1 9 4 . 4 1 Matter Fused 14 | . . 7 3 . 2 2 Heat Flow Errors 5 | . . 3 1 . 1 . Energy Discharges 8 | . . 4 . 1 1 2 Parts Rejected 2 | . . 2 . . . . Parts Fused 1 | . . 1 . . . . Data Loss (minor) 9 | . . 6 2 . 1 . Data Loss (major) 3 | . . 2 . . . 1 Misfires 3 | . . 1 1 . . 1 Weapon Failures 2 | . . . . . 2 . Overload Shots . | . . . . . . . Overflow Damage 230 | . 1 105 8 87 29 . Projectiles . | . . . . . . . Explosions 117 | . 1 . . 87 29 . Melee 113 | . . 105 8 . . . Knockbacks 5 | . . 5 . . . . Impact . | . . . . . . . Kinetic 5 | . . 5 . . . . Secondary . | . . . . . . . Self-Inflicted Damage 147 | . 34 . 16 7 90 . Shots 5 | . 1 . . 1 3 . Rammed 2 | . 1 . 1 . . . Targets Rammed 2 | . 1 . 1 . . . Kicked . | . . . . . . . Crushed . | . . . . . . . Highest Temperature 377 | . 24 238 212 204 377 1 Average Temperature 84 | . 10 103 58 68 143 1 Received Heat Transfer 507 | . 36 102 . 295 74 . Effects 2 | . . . . 1 1 . Interference 1 | . . . . 1 . . Matter Decay 1 | . . . . . 1 . Siege Activations . | . . . . . . . Martial Activations . | . . . . . . . Shielding Activations . | . . . . . . . Robots Disrupted . | . . . . . . . Combat Hostiles . | . . . . . . . Robots Corrupted 1 | . . . 1 . . . Combat Hostiles . | . . . . . . . Parts Fried 5 | . . . 2 . 3 . Impact Corruptions 1 | . . . 1 . . . Robots Melted 2 | . . . 1 . 1 . Combat Hostiles 2 | . . . 1 . 1 . Parts Melted 8 | . . . 2 4 2 . Heat Transferred 1501 | . 296 . 185 198 822 . Parts Sabotaged . | . . . . . . . Parts Stolen . | . . . . . . . Parts Stripped . | . . . . . . . Power Chain Reactions 3 | . . . . . 3 . Alert | -11 -10 -10 -8 -8 -6 -6 ------- Run | Yrd Mat Sub Rec Scr Fac Ext Maximum Alert Level 2 | . . . . . 2 1 Low Security (%) 83 | 100 100 . 100 . 74 . Level 1 9 | . . . . . 6 100 Level 2 6 | . . . . . 19 . Level 3 . | . . . . . . . Level 4 . | . . . . . . . Level 5 . | . . . . . . . High Security . | . . . . . . . Max Security . | . . . . . . . Peak Influence 591 | . 189 . 42 . 591 277 Initial 277 | . . . . . . 277 Average 88 | . 115 . 9 . 147 242 Influence Increases 1610 | . 235 223 219 . 933 . Destroy 0b10 Robot/C 640 | . 140 180 60 . 260 . Destroy 0b10 Robot/NC 105 | . . . 5 . 100 . Destroy Leader 126 | . 30 10 . . 86 . Allied During Kill 269 | . . 3 . . 266 . Successful Hack 18 | . 13 . 2 . 3 . Select Force Hacks 150 | . . . 150 . . . Disable Machine 135 | . 15 . . . 120 . Destroy Structure 122 | . 22 . 2 . 98 . Partial Spotted 15 | . 15 . . . . . Lose Combat Pursuer 30 | . . 30 . . . . Influence Decreases 1403 | . 140 318 219 . 366 360 Entered New Map 337 | . . 47 . . . 290 Time Decay 846 | . 140 261 219 . 156 70 Lost Part 40 | . . 10 . . 30 . Lost Ally 180 | . . . . . 180 . Squads Dispatched 5 | . 2 . . . 3 . Investigation . | . . . . . . . Extermination 1 | . . . . . 1 . Reinforcement 4 | . 2 . . . 2 . Assault . | . . . . . . . Garrison . | . . . . . . . Intercept . | . . . . . . . Searches Triggered . | . . . . . . . Construction Impeded 1 | . . . . . 1 . Haulers Reinforced 1 | . . . . . 1 . Active Scanning Responses . | . . . . . . . Cargo Convoy Interrupts . | . . . . . . . Stealth | -11 -10 -10 -8 -8 -6 -6 --------- Run | Yrd Mat Sub Rec Scr Fac Ext Distress Signals 1 | . . . . . 1 . Communications Jammed . | . . . . . . . Distress Signals . | . . . . . . . Times Spotted 105 | . 12 21 2 40 30 . Peak Tracking Total 6 | . 6 6 1 6 4 . Tactical Retreats 2 | . . 2 . . . . Traps | -11 -10 -10 -8 -8 -6 -6 ------- Run | Yrd Mat Sub Rec Scr Fac Ext Traps Triggered 1 | . . . . . 1 . Indirectly . | . . . . . . . Trap Hack Attempts . | . . . . . . . Triggered . | . . . . . . . Disarmed . | . . . . . . . Reprogrammed . | . . . . . . . Reused . | . . . . . . . Traps Extracted . | . . . . . . . Installed . | . . . . . . . Triggered . | . . . . . . . Most Traps Carried 2 | . . 2 . . . . Machines | -11 -10 -10 -8 -8 -6 -6 ---------- Run | Yrd Mat Sub Rec Scr Fac Ext Machines Disabled 22 | . 1 5 . 8 8 . Max in Single Turn 3 | . 1 3 . 1 1 . Garrison Access 1 | . . . . . 1 . Machines Repaired . | . . . . . . . Machines Dismantled . | . . . . . . . Machines Sabotaged . | . . . . . . . Overloaded Fab Kills . | . . . . . . . Hacking | -11 -10 -10 -8 -8 -6 -6 --------- Run | Yrd Mat Sub Rec Scr Fac Ext Machines Accessed 23 | . 3 4 5 6 5 . Terminals 5 | . 2 . . . 3 . Fabricators . | . . . . . . . Repair Stations 1 | . 1 . . . . . Recycling Units 6 | . . . 5 . 1 . Scanalyzers . | . . . . . . . Garrison Access 1 | . . . . . 1 . Total Hacks 51 | . 5 8 7 25 6 . Successful 47 | . 3 8 6 25 5 . Failed 4 | . 2 . 1 . 1 . Catastrophic 1 | . 1 . . . . . Database Lockouts . | . . . . . . . Manual 11 | . 3 . 7 . 1 . Terminals 7 | . 3 . . . 4 . Fabricators . | . . . . . . . Repair Stations 2 | . 2 . . . . . Recycling Units 8 | . . . 7 . 1 . Scanalyzers . | . . . . . . . Garrison Access 1 | . . . . . 1 . Terminal Hacks 36 | . . 8 . 25 3 . Record 30 | . . 5 . 25 . . Prototype ID Bank 1 | . . . . . 1 . Open Door 2 | . . 1 . . 1 . Branch Access Points 1 | . . . . . 1 . Proto ID Catalog 1 | . . 1 . . . . Release Object 1 | . . 1 . . . . Fabricator Hacks . | . . . . . . . Repair Station Hacks 1 | . 1 . . . . . Refit 1 | . 1 . . . . . Recycling Unit Hacks . | . . . . . . . Scanalyzer . | . . . . . . . Garrison Access Hacks 1 | . . . . . 1 . Seal Access 1 | . . . . . 1 . Unauthorized Hacks 7 | . 2 . 5 . . . Terminals 2 | . 2 . . . . . Assimilate 1 | . 1 . . . . . Disrupt 1 | . 1 . . . . . Fabricators . | . . . . . . . Repair Stations . | . . . . . . . Recycling Units 5 | . . . 5 . . . Tunnel 5 | . . . 5 . . . Scanalyzers . | . . . . . . . Garrison Access . | . . . . . . . Data Cores Recovered 1 | . . . . . 1 . Used . | . . . . . . . Hacking Detections 4 | . 2 . 1 . 1 . Full Trace Events 1 | . 1 . . . . . Feedback Events . | . . . . . . . Feedback Blocked . | . . . . . . . Robot Schematics Acquired . | . . . . . . . Robots Built . | . . . . . . . Authchips . | . . . . . . . Time . | . . . . . . . Total Robot Build Rating . | . . . . . . . Part Schematics Acquired . | . . . . . . . Parts Built . | . . . . . . . Authchips . | . . . . . . . Time . | . . . . . . . Total Part Build Rating . | . . . . . . . Part Studies Acquired . | . . . . . . . Parts Repaired . | . . . . . . . Time . | . . . . . . . Parts Recycled . | . . . . . . . Recycled Matter . | . . . . . . . Retrieved Matter . | . . . . . . . Retrieved Components . | . . . . . . . Parts Scanalyzed . | . . . . . . . Part Schematics Acquired . | . . . . . . . Parts Damaged . | . . . . . . . Bothacking | -11 -10 -10 -8 -8 -6 -6 ------------ Run | Yrd Mat Sub Rec Scr Fac Ext Used RIF Installer . | . . . . . . . Robots Hacked . | . . . . . . . Non-combat . | . . . . . . . Combat . | . . . . . . . Robot Hacks Applied . | . . . . . . . Relay Couplers Released 4 | . . . . . 4 . Programmers 4 | . . . . . 4 . Fabnet Peak Effective % . | . . . . . . . Robots Rewired . | . . . . . . . Allies Hacked 1 | . . . . . 1 . Hacks Repelled . | . . . . . . . Allies | -11 -10 -10 -8 -8 -6 -6 -------- Run | Yrd Mat Sub Rec Scr Fac Ext Total Allies 29 | . 1 3 . 25 . . Largest Group 15 | . 1 3 1 15 14 1 Highest-Rated Group 711 | . 10 57 19 711 658 39 Highest-Rated Ally 51 | . 10 19 19 50 51 39 Total Orders 1 | . . 1 . . . . STAY 1 | . . 1 . . . . Ally Attacks 470 | . . 7 3 333 127 . Total Damage 9103 | . . 172 25 6052 2854 . Kills 89 | . . 3 . 56 30 . Allies Corrupted . | . . . . . . . Allies Melted 20 | . . . . 20 . . Intel | -11 -10 -10 -8 -8 -6 -6 ------- Run | Yrd Mat Sub Rec Scr Fac Ext Active Infowar (turns) . | . . . . . . . Robot Analysis Total . | . . . . . . . Derelict Logs Recovered 6 | . . 1 . 5 . . Drone Launches . | . . . . . . . Drone Recoveries . | . . . . . . . Exploration | -11 -10 -10 -8 -8 -6 -6 ------------- Run | Yrd Mat Sub Rec Scr Fac Ext Turns Passed 13787 | 9 303 5255 936 6401 727 156 Spaces Moved 7819 | 18 279 2862 510 3713 356 81 Core 124 | 18 92 . . 14 . . Treads 2362 | . . 2173 . 189 . . Legs 622 | . . . . 622 . . Wheels 4301 | . . 466 510 2888 356 81 Hover 410 | . 187 223 . . . . Flight . | . . . . . . . Fastest Speed 50 | 50 50 76 160 90 180 190 Average Speed 158 | 50 67 169 175 152 180 190 Slowest Speed 3650 | 50 76 660 179 3650 190 190 Overloaded Moves . | . . . . . . . Propulsion Burnouts . | . . . . . . . Robots Hopped . | . . . . . . . Potential Cave-ins . | . . . . . . . Cave-ins Triggered . | . . . . . . . Exploration Rate (%) 51 | 3 45 97 96 94 14 13 Regions Visited 6 Branch Regions 4 Pre-discovered Areas 7 | . . 1 5 1 . . Known Exits Taken 1 | . . . . . 1 . Unknown Exits Taken 5 | 1 1 1 1 1 . . Scrap Searched 16 | . . 10 . 6 . . Spaces Dug 9 | . 1 6 1 1 . . Terrain Destroyed 192 | . 26 54 1 34 77 . Melee 7 | . . 6 . 1 . . Projectile 48 | . . . 1 3 44 . AOE 136 | . 26 48 . 30 32 . Terrain Rammed . | . . . . . . . Walls Destroyed . | . . . . . . . Machines Disabled . | . . . . . . . Actions | -11 -10 -10 -8 -8 -6 -6 --------- Run | Yrd Mat Sub Rec Scr Fac Ext Total 9038 | 17 367 3170 539 4436 426 83 Wait 784 | . 65 169 14 535 1 . Move 7813 | 17 278 2861 509 3712 355 81 Hop . | . . . . . . . Pick Up 108 | . . 28 1 68 10 1 Fast Attach 20 | . 1 8 . 10 1 . Attach 23 | . . 2 1 12 8 . Detach 16 | . 1 3 1 7 4 . Swap 45 | . 4 11 4 21 5 . Drop 45 | . . 16 1 27 1 . Fire 105 | . 17 11 7 38 32 . Melee 67 | . . 61 . 6 . . Ram 2 | . 1 . 1 . . . Kick . | . . . . . . . Crush . | . . . . . . . Escape Stasis 8 | . . . . . 8 . Rewire 2 | . . . . . 1 1 Trap . | . . . . . . . Miscellaneous . | . . . . . . . Route ------- -11/Scrapyard -10/Materials (discovered 2 exits: [*Mat] / *Sub) -10/Subcaves (discovered 3 exits: [*Mat x2] / *Rec) -8/Recycling (discovered 2 exits: *Fac / *Scr) -8/Scraptown (discovered 2 exits: *Fac x2) -6/Factory (discovered 5 exits: Fac / Low x2 / *Ext x2) -6/Extension History --------- Turn | Location | Event 4 | -11/Scrapyard | Discovered new exit (range 13) 10 | -11/Scrapyard | Entered Materials 128 | -10/Materials | Discovered new exit (range 10) 295 | -10/Materials | Discovered new exit (range 5) 308 | -10/Materials | Build established: Mutant 313 | -10/Materials | Entered Subcaves 313 | -10/Subcaves | Accompanied by 1 ally 316 | -10/Subcaves | Learned Materials security intel 338 | -10/Subcaves | Shifting Twisted Machinery released Spk. Treads 744 | -10/Subcaves | Learned location of Zion (-7) 744 | -10/Subcaves | Met a Zionite searching for "candidates" 787 | -10/Subcaves | Build established: Derelict-Mutant 1202 | -10/Subcaves | Visited Clippyterm 1206 | -10/Subcaves | Learned Factory stockpile data 1450 | -10/Subcaves | Shifting Twisted Machinery released Sub. Shrapnel Launcher 1451 | -10/Subcaves | Shifting Twisted Machinery released Sub. Power Source 1529 | -10/Subcaves | A swath of the cavern ceiling suddenly collapsed 1986 | -10/Subcaves | Discovered new exit (range 16) 2048 | -10/Subcaves | Visited triangular shrine 2057 | -10/Subcaves | Found Prototype Device 2057 | -10/Subcaves | Identified V3-11A's Pendant 2062 | -10/Subcaves | Befriended Subdweller 2111 | -10/Subcaves | Discovered new exit (range 11) 2572 | -10/Subcaves | Shifting Twisted Machinery released Sub. Beam Cannon 2595 | -10/Subcaves | Shifting Twisted Machinery released Piercing Trap 2803 | -10/Subcaves | Befriended Subdweller 3263 | -10/Subcaves | Befriended Subdweller 3298 | -10/Subcaves | Discovered new exit (range 14) 3606 | -10/Subcaves | Visited 4L-MR0's lab 3624 | -10/Subcaves | Found Meta Core 4417 | -10/Subcaves | Build established: Hauler-Mutant 4760 | -10/Subcaves | Core integrity fell below 50% 5481 | -10/Subcaves | Found SUBCON Basin 5568 | -10/Subcaves | Entered Recycling 5568 | -8/Recycling | Accompanied by 1 ally 5812 | -8/Recycling | Discovered new exit (range 12) 6454 | -8/Recycling | Scanned before Scraplab entrance 6479 | -8/Recycling | Entered Scraplab 6501 | -8/Recycling | Discovered new exit (range 3) 6504 | -8/Recycling | Entered Scraptown 6508 | -8/Scraptown | System corruption cleaned by C-Scrubber 6725 | -8/Scraptown | Visited UFD Registry 6725 | -8/Scraptown | Registered with UFD as "Zeroshell" 6762 | -8/Scraptown | Visited Assassins FH 6803 | -8/Scraptown | Visited Spacefarers 6818 | -8/Scraptown | Visited Shadow of the Wyrm 6857 | -8/Scraptown | Visited Symbiants 6887 | -8/Scraptown | Visited Comm Corps 6904 | -8/Scraptown | Visited Cyclists 6915 | -8/Scraptown | Entered Cyclist Reading Room 6984 | -8/Scraptown | Visited Cave Peace 7178 | -8/Scraptown | Delivered V3-11A's Pendant to T0-NE2 in exchange for information 7346 | -8/Scraptown | Scanned Subdweller tech in exchange for log data 7350 | -8/Scraptown | Learned location of 1 exit from Factory 7351 | -8/Scraptown | Learned Research terminal intel 7353 | -8/Scraptown | Learned Research stockpile data 7355 | -8/Scraptown | Learned Factory terminal intel 7356 | -8/Scraptown | Learned location of Quarantine (-2) 7486 | -8/Scraptown | Visited Curators Association 7555 | -8/Scraptown | Visited Scrapoid Pod Storage 7563 | -8/Scraptown | Found Scrapoid Pod 7593 | -8/Scraptown | Visited A0-MCA Data Center 7618 | -8/Scraptown | Visited Abandonware Association 7636 | -8/Scraptown | Learned abandonware demo "ERRANTS.EXE" 7673 | -8/Scraptown | Visited Research Penetration Think Tank 7723 | -8/Scraptown | Visited Junk Repository 7746 | -8/Scraptown | Visited Chapter 10 7780 | -8/Scraptown | Visited DA-N13 Charitable Foundation 7795 | -8/Scraptown | Found DCF Scrap (29 items) 8500 | -8/Scraptown | Discovered new exit (range 11) 8554 | -8/Scraptown | Guru changed UFD alias to "Matterrigger" 9071 | -8/Scraptown | Delivered Scrap Shield to a Scientist 9183 | -8/Scraptown | Build established: Derelict-Mutant 9811 | -8/Scraptown | Given a B- rating by A0-MCA 9816 | -8/Scraptown | Found A0-MCA's Component Scanner 10286 | -8/Scraptown | Met Optimus 10286 | -8/Scraptown | Accepted into 0bPrime 10358 | -8/Scraptown | Attached Meta Core, gained temporary slots: Propulsion, Utility, Weapon 10368 | -8/Scraptown | Civil war broke out across Scraptown 10383 | -8/Scraptown | Discovered new exit (range 3) 10402 | -8/Scraptown | Lost 3 allies 10466 | -8/Scraptown | Scrapoid Pod released 08S05-D (x5) 10490 | -8/Scraptown | Attached CPS modules to 08S01-D 10492 | -8/Scraptown | Attached CPS modules to 08S02-D 10514 | -8/Scraptown | Found Scrap Suit 10581 | -8/Scraptown | Lost 4 allies 10645 | -8/Scraptown | Found Prototype Processor 10657 | -8/Scraptown | Optimus destroyed in the chaos of civil war 10804 | -8/Scraptown | Build established: Scavenger-Mutant 10864 | -8/Scraptown | Core integrity fell below 20% 10910 | -8/Scraptown | Lost 4 allies 10922 | -8/Scraptown | Found DM-GVY's Chainsaw 10991 | -8/Scraptown | Lost 5 allies 11005 | -8/Scraptown | Found Prototype Special Weapon 11063 | -8/Scraptown | Found ID Mask 11123 | -8/Scraptown | Lost 4 allies 11191 | -8/Scraptown | Found Scrapoid Pod 11194 | -8/Scraptown | Found Scrapoid Pod 11374 | -8/Scraptown | Scrapoid Pod released 08S10-D (x5) 11389 | -8/Scraptown | Lost 3 allies 11586 | -8/Scraptown | Scrapoid Pod released 08S15-D (x5) 11597 | -8/Scraptown | Build established: Scavenger-Gunner 11610 | -8/Scraptown | Found Scrapoid Pod 11616 | -8/Scraptown | Found Scrapoid Pod 11620 | -8/Scraptown | Lost 4 allies 11767 | -8/Scraptown | Lost 6 allies 11771 | -8/Scraptown | Scrapoid Pod released 08S20-D (x5) 11870 | -8/Scraptown | Lost 11 allies 11916 | -8/Scraptown | Lost 3 allies 11948 | -8/Scraptown | Scrapoid Pod released 08S25-D (x5) 12112 | -8/Scraptown | Found Scrap Suit 12190 | -8/Scraptown | Found Scrapoid Pod 12276 | -8/Scraptown | Lost 3 allies 12289 | -8/Scraptown | Build established: Hauler-Gunner 12705 | -8/Scraptown | Found Scrap Suit 12736 | -8/Scraptown | Found Scrap Suit 12741 | -8/Scraptown | Found Scrap Suit 12905 | -8/Scraptown | Entered Factory 12905 | -6/Factory | Accompanied by 14 allies 12905 | -6/Factory | Evolved 8 slots: Propulsion x1, Utility x4, Weapon x3 12906 | -6/Factory | Identified exit to Factory 12908 | -6/Factory | Loaded intel: 28 terminal locations 13261 | -6/Factory | Spotted B-75 Beast 13271 | -6/Factory | Destroyed B-75 Beast 13285 | -6/Factory | Build established: Scavenger-Scrapper 13396 | -6/Factory | Identified exit to Lower Caves 13396 | -6/Factory | Identified exit to Extension 13419 | -6/Factory | System corruption reached 10% 13447 | -6/Factory | Assembled infested ambush trap array 13476 | -6/Factory | Lost 3 allies 13491 | -6/Factory | Murdered 3 allies 13542 | -6/Factory | Lost 5 allies 13632 | -6/Factory | Entered Extension 13632 | -6/Extension | Accompanied by 1 ally 13788 | -6/Extension | Self-destructed Last Messages --------------- >>Open(Door) Sealed Blast Doors opened. LOCATION=EXTENSION GOAL=ESCAPE 13635_ System corrupted: Matter fused (-7). 13644_ T-07 Excavator exits Transfer Station. 13644_ R-10 Processor exits Transfer Station. 13644_ U-05 Engineer exits Transfer Station. 13659_ System corrupted: FCS attempts to trigger Ovr. Barrage Gun. 13659_ System corrupted: Ovr. Barrage Gun misfires. 13676_ System corrupted: Energy discharge (-37). 13690_ Scrap Suit cannibalized Power Amplifier to repair Mak. Microdissipator Network. 13696_ B8RGNRJH8ZFYGG:S=%C8Y:MD R 13699_ Acquired Remote Shield. 13704_ Attempting to rewire T-07 Excavator. 13704_ T-07 Excavator is broken beyond repair. 13713_ System corrupted: Substantial component data lost. 13731_ System corrupted: Energy discharge (-61). 13758_ System corrupted: Matter fused (-5). Map ----- +----------------------------------------------------+ | | | | | | | | | | | | | | | | | | | | | | | | | | | | | | | | | | | | | | | | | | | ?????????????????????????????????????????????????? | | #####????????????????????????????????????????????? | | #????????????????????????????????????????????? | | ##########################???????????????????? | | s@R #???????????????????? | | ######################## #???????????????????? | | #????????????????????????????????????????????? | | #####????????????????????????????????????????????? | | ?????????????????????????????????????????????????? | | ?????????????????????????????????????????????????? | | ?????????????????????????????????????????????????? | | ?????????????????????????????????????????????????? | | ?????????????????????????????????????????????????? | | ?????????????????????????????????????????????????? | | ?????????????????????????????????????????????????? | | ?????????????????????????????????????????????????? | | ?????????????????????????????????????????????????? | | ?????????????????????????????????????????????????? | | ?????????????????????????????????????????????????? | | ?????????????????????????????????????????????????? | | ?????????????????????????????????????????????????? | | ?????????????????????????????????????????????????? | | ?????????????????????????????????????????????????? | | ?????????????????????????????????????????????????? | | ?????????????????????????????????????????????????? | | ?????????????????????????????????????????????????? | | ?????????????????????????????????????????????????? | | ?????????????????????????????????????????????????? | | ?????????????????????????????????????????????????? | +----------------------------------------------------+ Best States ------------- Heat Dissipation 37 Energy Generation 17 Energy Capacity 240 Matter Stores 300 Matter Capacity 300 Sight Range 16 Terrain Scan Density 10 Armor Coverage 225 Resistance: TH 15 Evasion (%) 55 Recoil Reduction 2 Offensive Hacking 32 Item Schematics ----------------- None Robot Schematics ------------------ None Fabricated ------------ Nothing Repaired ---------- Nothing Studied --------- None Alien Tech Used ----------------- None Achievements -------------- Longdome?! Uncivil War Challenges ------------ None Game ------ Seed ConcussiveBottomlessStorage Manual? 0 Play Time 01:20:22 Cumulative 645.8 hours Start 2026.06.29 @ 17:33:46 End 2026.06.30 @ 16:28:51 Sessions 9 Manual Loads 0 Difficulty Rogue Special Mode None Game No. 252 Rogue 252 Adventurer 0 Explorer 0 Win Type - Total 25 Types 10/3/7/1/0/0/1/2/0/1 Lore% 93 Gallery% 84 Achievement% 70 Wizard Run 0 Options --------- Layout 0 ASCII 0 Keyboard 1 Movement Numpad Keybinds 0 Fullscreen 2 Font 18/SmallcapsGlow Map View 76x50 Zoom Use 0% Tactical HUD 1 Map Filters NONE Filters NONE Steam 1 RUN: 61d00ae2-280a-4755-b16f-f910dd649945